[Event "GrandPrix_29.05"]
[Site "Chess.com"]
[Date "2020.05.29"]
[Round "5"]
[White "Nikame"]
[Black "lilleper1"]
[Result "1/2-1/2"]
[WhiteElo "2468"]
[BlackElo "2363"]
[TimeControl "600+2"]
[EndTime "11:31:12 PDT"]
[Termination "Game drawn by repetition"]

1. d4 {[%clk 0:10:01.8]} 1... Nf6 {[%clk 0:10:00.6]} 2. Bg5 {[%clk 0:10:01]}
2... Ne4 {[%clk 0:10:01]} 3. Bf4 {[%clk 0:10:01.2]} 3... d5 {[%clk 0:10:02]} 4.
e3 {[%clk 0:10:01.8]} 4... Nc6 {[%clk 0:09:43.7]} 5. Bd3 {[%clk 0:09:41.8]} 5...
g5 {[%clk 0:09:43.9]} 6. Bg3 {[%clk 0:09:33]} 6... Nxg3 {[%clk 0:09:44.4]} 7.
hxg3 {[%clk 0:09:33.1]} 7... e5 {[%clk 0:09:45.3]} 8. dxe5 {[%clk 0:09:04]} 8...
Nxe5 {[%clk 0:09:41.6]} 9. Rxh7 {[%clk 0:09:03.7]} 9... Nxd3+ {[%clk 0:09:17.2]}
10. Qxd3 {[%clk 0:09:03.6]} 10... Rxh7 {[%clk 0:09:16.3]} 11. Qxh7 {[%clk
0:09:03.4]} 11... Qf6 {[%clk 0:09:16.4]} 12. Nc3 {[%clk 0:08:55.9]} 12... c6
{[%clk 0:08:31.5]} 13. Qd3 {[%clk 0:08:51.2]} 13... Bf5 {[%clk 0:08:27.4]} 14.
Qd2 {[%clk 0:08:50.7]} 14... O-O-O {[%clk 0:08:23.8]} 15. O-O-O {[%clk
0:08:43.7]} 15... Bg7 {[%clk 0:08:18.2]} 16. Qd4 {[%clk 0:07:53.2]} 16... Qg6
{[%clk 0:07:39]} 17. Qa4 {[%clk 0:07:47.4]} 17... Kb8 {[%clk 0:07:18.2]} 18.
Nge2 {[%clk 0:07:42.5]} 18... Rh8 {[%clk 0:06:56]} 19. Nd4 {[%clk 0:07:28.8]}
19... Bc8 {[%clk 0:06:44.5]} 20. a3 {[%clk 0:06:58.6]} 20... Qf6 {[%clk
0:06:41.6]} 21. f3 {[%clk 0:06:44.3]} 21... Qe5 {[%clk 0:06:39]} 22. e4 {[%clk
0:05:46.1]} 22... dxe4 {[%clk 0:06:06.7]} 23. fxe4 {[%clk 0:05:28.3]} 23... Bg4
{[%clk 0:05:22]} 24. Qb4 {[%clk 0:05:07.7]} 24... Ka8 {[%clk 0:05:14.7]} 25. Nf3
{[%clk 0:05:05]} 25... Qxg3 {[%clk 0:05:09.8]} 26. Qe7 {[%clk 0:05:05.1]} 26...
Qf4+ {[%clk 0:03:52.9]} 27. Kb1 {[%clk 0:05:03.9]} 27... Qf6 {[%clk 0:03:51]}
28. Qxf6 {[%clk 0:03:39.7]} 28... Bxf6 {[%clk 0:03:51.6]} 29. Rd3 {[%clk
0:03:39.8]} 29... Be6 {[%clk 0:03:27.8]} 30. b3 {[%clk 0:03:31.5]} 30... g4
{[%clk 0:03:12.6]} 31. Nd4 {[%clk 0:03:29.8]} 31... Bxd4 {[%clk 0:02:55.8]} 32.
Rxd4 {[%clk 0:03:30.4]} 32... Kb8 {[%clk 0:02:56.7]} 33. Ne2 {[%clk 0:03:25.1]}
33... Rh1+ {[%clk 0:02:48.1]} 34. Kb2 {[%clk 0:03:25.2]} 34... Rf1 {[%clk
0:02:42.6]} 35. g3 {[%clk 0:02:40]} 35... c5 {[%clk 0:02:15.8]} 36. Rd8+ {[%clk
0:02:29.4]} 36... Kc7 {[%clk 0:02:14.4]} 37. Rg8 {[%clk 0:02:26.2]} 37... Re1
{[%clk 0:01:42]} 38. Nf4 {[%clk 0:02:08.9]} 38... Rxe4 {[%clk 0:01:40.3]} 39.
Rg5 {[%clk 0:01:38.6]} 39... b6 {[%clk 0:01:33.3]} 40. Nxe6+ {[%clk 0:01:37.7]}
40... fxe6 {[%clk 0:01:29.5]} 41. Rg7+ {[%clk 0:01:38.4]} 41... Kc6 {[%clk
0:01:03.4]} 42. Rxa7 {[%clk 0:01:37.2]} 42... Re3 {[%clk 0:01:03.7]} 43. Re7
{[%clk 0:01:33.9]} 43... Kd6 {[%clk 0:00:59.9]} 44. Rb7 {[%clk 0:01:33.3]} 44...
Kc6 {[%clk 0:00:52]} 45. Re7 {[%clk 0:01:34.2]} 45... Kd6 {[%clk 0:00:14.5]} 46.
Rb7 {[%clk 0:01:34.4]} 46... Kc6 {[%clk 0:00:15.3]} 47. Re7 {[%clk 0:01:34.2]}
1/2-1/2

[Event "GrandPrix_29.05"]
[Site "Chess.com"]
[Date "2020.05.29"]
[Round "5"]
[White "chess_big_master"]
[Black "Happy1712Drummer"]
[Result "0-1"]
[WhiteElo "2026"]
[BlackElo "2192"]
[TimeControl "600+2"]
[EndTime "11:31:30 PDT"]
[Termination "Happy1712Drummer won on time"]

1. d4 {[%clk 0:10:01.9]} 1... d5 {[%clk 0:09:59.8]} 2. Nf3 {[%clk 0:10:02.9]}
2... Nf6 {[%clk 0:10:00.2]} 3. c4 {[%clk 0:10:04.1]} 3... c6 {[%clk 0:10:00.8]}
4. Nc3 {[%clk 0:10:05.4]} 4... e6 {[%clk 0:10:00.5]} 5. e3 {[%clk 0:10:03.1]}
5... Nbd7 {[%clk 0:10:00.4]} 6. Qc2 {[%clk 0:10:01.3]} 6... Bd6 {[%clk
0:09:59.6]} 7. Bd3 {[%clk 0:09:58.5]} 7... O-O {[%clk 0:09:59.6]} 8. e4 {[%clk
0:09:43.3]} 8... dxc4 {[%clk 0:09:59.4]} 9. Bxc4 {[%clk 0:09:42.7]} 9... e5
{[%clk 0:10:01]} 10. O-O {[%clk 0:09:40]} 10... exd4 {[%clk 0:08:38]} 11. Nxd4
{[%clk 0:09:36.6]} 11... Nb6 {[%clk 0:08:38]} 12. Be2 {[%clk 0:09:01.7]} 12...
Bxh2+ {[%clk 0:08:34.3]} 13. Kxh2 {[%clk 0:09:02.3]} 13... Qxd4 {[%clk
0:08:36.2]} 14. Be3 {[%clk 0:08:56.2]} 14... Qb4 {[%clk 0:08:31.9]} 15. f3
{[%clk 0:08:27.5]} 15... Nc4 {[%clk 0:08:23.7]} 16. Bg5 {[%clk 0:07:47.7]} 16...
Qd6+ {[%clk 0:08:00.4]} 17. g3 {[%clk 0:06:30]} 17... Nh5 {[%clk 0:07:00]} 18.
Rg1 {[%clk 0:05:26.5]} 18... Qc5 {[%clk 0:06:58.3]} 19. Qc1 {[%clk 0:04:40.6]}
19... Ne5 {[%clk 0:05:33.7]} 20. g4 {[%clk 0:03:28.5]} 20... Qf2+ {[%clk
0:03:06.4]} 21. Rg2 {[%clk 0:03:25.9]} 21... Nxf3+ {[%clk 0:03:03.5]} 22. Bxf3
{[%clk 0:03:23]} 22... Qxf3 {[%clk 0:03:04.2]} 23. gxh5 {[%clk 0:03:13.6]} 23...
Qxh5+ {[%clk 0:03:03.3]} 24. Kg1 {[%clk 0:03:11.5]} 24... Bh3 {[%clk 0:02:19.6]}
25. Rg3 {[%clk 0:02:54.4]} 25... f5 {[%clk 0:02:17.1]} 26. Qe3 {[%clk
0:01:51.4]} 26... Bg4 {[%clk 0:02:02]} 27. exf5 {[%clk 0:00:56]} 27... Rxf5
{[%clk 0:01:32]} 28. Bf4 {[%clk 0:00:47.5]} 28... Re8 {[%clk 0:01:12.4]} 29. Qd4
{[%clk 0:00:27.9]} 29... c5 {[%clk 0:01:01.2]} 30. Qd2 {[%clk 0:00:21.5]} 30...
Bf3 {[%clk 0:00:40.1]} 31. Rf1 {[%clk 0:00:14.5]} 31... Qh1+ {[%clk 0:00:30.8]}
32. Kf2 {[%clk 0:00:15.6]} 32... Qh2+ {[%clk 0:00:30.7]} 33. Kxf3 {[%clk
0:00:06.2]} 33... Qxd2 {[%clk 0:00:31.2]} 0-1

[Event "GrandPrix_29.05"]
[Site "Chess.com"]
[Date "2020.05.29"]
[Round "5"]
[White "Guenplen"]
[Black "Saxar85"]
[Result "1-0"]
[WhiteElo "2525"]
[BlackElo "2459"]
[TimeControl "600+2"]
[EndTime "11:31:31 PDT"]
[Termination "Guenplen won by resignation"]

1. d4 {[%clk 0:10:01.9]} 1... Nf6 {[%clk 0:09:58.6]} 2. Bf4 {[%clk 0:10:02.2]}
2... e6 {[%clk 0:09:56.8]} 3. e3 {[%clk 0:10:02.1]} 3... b6 {[%clk 0:09:55.4]}
4. Qf3 {[%clk 0:09:51.6]} 4... d5 {[%clk 0:09:40.9]} 5. Nc3 {[%clk 0:09:41.2]}
5... Bb7 {[%clk 0:09:15]} 6. O-O-O {[%clk 0:09:25.1]} 6... a6 {[%clk 0:09:02.2]}
7. g4 {[%clk 0:09:15.6]} 7... Nbd7 {[%clk 0:08:44.1]} 8. g5 {[%clk 0:09:08.3]}
8... Ne4 {[%clk 0:08:42.7]} 9. Nxe4 {[%clk 0:09:01.1]} 9... dxe4 {[%clk
0:08:43.1]} 10. Qg3 {[%clk 0:08:52.9]} 10... Rc8 {[%clk 0:07:58.8]} 11. Ne2
{[%clk 0:08:39.7]} 11... b5 {[%clk 0:07:36]} 12. Bg2 {[%clk 0:08:27.4]} 12...
Nb6 {[%clk 0:05:53.2]} 13. Nc3 {[%clk 0:08:19.6]} 13... Nd5 {[%clk 0:05:47.4]}
14. Nxe4 {[%clk 0:08:07.8]} 14... Be7 {[%clk 0:05:31.1]} 15. Be5 {[%clk
0:07:10.1]} 15... Kf8 {[%clk 0:05:30.1]} 16. Nc5 {[%clk 0:07:00.2]} 16... Ba8
{[%clk 0:05:28.1]} 17. h4 {[%clk 0:06:30.2]} 17... a5 {[%clk 0:05:19.1]} 18. h5
{[%clk 0:06:11.2]} 18... Bd6 {[%clk 0:03:44.8]} 19. h6 {[%clk 0:05:48.6]} 19...
Bxe5 {[%clk 0:03:44.6]} 20. Qxe5 {[%clk 0:05:50.5]} 20... Rg8 {[%clk 0:03:40.6]}
21. hxg7+ {[%clk 0:04:57.9]} 21... Rxg7 {[%clk 0:03:40.8]} 22. f4 {[%clk
0:04:54.1]} 22... Qd6 {[%clk 0:02:54.2]} 23. Rh3 {[%clk 0:04:19.7]} 23... Nxf4
{[%clk 0:02:20.8]} 24. exf4 {[%clk 0:03:46.8]} 24... Bxg2 {[%clk 0:02:20.5]} 25.
Rc3 {[%clk 0:03:32.6]} 25... Rd8 {[%clk 0:02:06.8]} 26. b3 {[%clk 0:02:42.6]}
26... b4 {[%clk 0:01:58.3]} 27. Rg3 {[%clk 0:02:43.2]} 27... Bd5 {[%clk
0:01:47.1]} 28. Rh3 {[%clk 0:02:30.1]} 28... Bg2 {[%clk 0:01:27.9]} 29. Rh2
{[%clk 0:02:17.6]} 29... Bf3 {[%clk 0:01:14.6]} 30. Rd3 {[%clk 0:02:04.3]} 30...
Bg4 {[%clk 0:01:06.5]} 31. Nb7 {[%clk 0:01:40.9]} 31... Qxe5 {[%clk 0:00:55.4]}
32. dxe5 {[%clk 0:01:42.8]} 32... Rxd3 {[%clk 0:00:43.6]} 33. cxd3 {[%clk
0:01:44.7]} 33... Ke7 {[%clk 0:00:35]} 34. Nxa5 {[%clk 0:01:42]} 34... Kd7
{[%clk 0:00:34.9]} 35. Nc4 {[%clk 0:01:32.9]} 35... Bf5 {[%clk 0:00:27.2]} 36.
Ne3 {[%clk 0:01:31.7]} 36... Rg8 {[%clk 0:00:09.5]} 37. Nxf5 {[%clk 0:01:31.1]}
37... exf5 {[%clk 0:00:10.6]} 38. Rxh7 {[%clk 0:01:31.7]} 38... Ke7 {[%clk
0:00:11.9]} 39. Kb2 {[%clk 0:01:07.7]} 39... c5 {[%clk 0:00:11.1]} 40. a4 {[%clk
0:01:02.3]} 40... bxa3+ {[%clk 0:00:11]} 41. Kxa3 {[%clk 0:01:03.7]} 41... Ra8+
{[%clk 0:00:11.6]} 42. Kb2 {[%clk 0:01:05.2]} 42... Rg8 {[%clk 0:00:09.6]} 43.
Kc3 {[%clk 0:01:05.2]} 1-0

[Event "GrandPrix_29.05"]
[Site "Chess.com"]
[Date "2020.05.29"]
[Round "5"]
[White "iceboy88"]
[Black "ftorodent"]
[Result "1-0"]
[WhiteElo "2463"]
[BlackElo "2166"]
[TimeControl "600+2"]
[EndTime "11:31:31 PDT"]
[Termination "iceboy88 won by resignation"]

1. Nf3 {[%clk 0:09:58.9]} 1... d5 {[%clk 0:09:59]} 2. g3 {[%clk 0:09:59.4]} 2...
c6 {[%clk 0:09:57.7]} 3. Bg2 {[%clk 0:10:00.3]} 3... Bg4 {[%clk 0:09:58.1]} 4.
O-O {[%clk 0:10:01]} 4... Nd7 {[%clk 0:09:58.7]} 5. d3 {[%clk 0:10:01.4]} 5...
Ngf6 {[%clk 0:09:59.3]} 6. h3 {[%clk 0:10:01.4]} 6... Bh5 {[%clk 0:09:59.5]} 7.
Qe1 {[%clk 0:10:02.1]} 7... e5 {[%clk 0:09:45.8]} 8. e4 {[%clk 0:10:03.1]} 8...
dxe4 {[%clk 0:09:42.6]} 9. dxe4 {[%clk 0:10:04]} 9... Be7 {[%clk 0:09:42.7]} 10.
a4 {[%clk 0:09:55.4]} 10... O-O {[%clk 0:09:40.5]} 11. Na3 {[%clk 0:09:41.5]}
11... Qc7 {[%clk 0:09:23.7]} 12. Nc4 {[%clk 0:09:36.7]} 12... Bg6 {[%clk
0:08:58.3]} 13. Nh4 {[%clk 0:09:25]} 13... Nc5 {[%clk 0:08:40.7]} 14. b4 {[%clk
0:08:59.3]} 14... Ne6 {[%clk 0:07:42.8]} 15. c3 {[%clk 0:08:50.3]} 15... Rfe8
{[%clk 0:07:25.2]} 16. Nxg6 {[%clk 0:06:24.2]} 16... hxg6 {[%clk 0:07:25.3]} 17.
Be3 {[%clk 0:06:21.8]} 17... b5 {[%clk 0:06:41.6]} 18. axb5 {[%clk 0:05:22.7]}
18... cxb5 {[%clk 0:06:42.2]} 19. Nb2 {[%clk 0:04:45.2]} 19... a5 {[%clk
0:06:32.9]} 20. bxa5 {[%clk 0:04:33.7]} 20... Rxa5 {[%clk 0:06:33.6]} 21. Rxa5
{[%clk 0:04:30.9]} 21... Qxa5 {[%clk 0:06:33.7]} 22. Nd3 {[%clk 0:04:32.1]}
22... Nd7 {[%clk 0:06:14.9]} 23. f4 {[%clk 0:04:23.1]} 23... exf4 {[%clk
0:06:02.4]} 24. gxf4 {[%clk 0:04:23.2]} 24... Rc8 {[%clk 0:04:54.9]} 25. f5
{[%clk 0:03:29.4]} 25... gxf5 {[%clk 0:04:41.9]} 26. exf5 {[%clk 0:03:30.5]}
26... Nec5 {[%clk 0:04:32]} 27. Nxc5 {[%clk 0:03:19.3]} 27... Bxc5 {[%clk
0:04:00.5]} 28. Bxc5 {[%clk 0:03:13.1]} 28... Nxc5 {[%clk 0:04:01.3]} 29. f6
{[%clk 0:03:10.6]} 29... Ne6 {[%clk 0:03:58.9]} 30. Rf3 {[%clk 0:02:13.4]} 30...
g6 {[%clk 0:03:07.1]} 31. Qe3 {[%clk 0:01:39.3]} 31... b4 {[%clk 0:02:39.2]} 32.
cxb4 {[%clk 0:01:32.7]} 32... Qxb4 {[%clk 0:02:39.7]} 33. Kh1 {[%clk 0:01:03.8]}
33... Rd8 {[%clk 0:02:30.5]} 34. Rf1 {[%clk 0:00:55.8]} 34... Rd2 {[%clk
0:02:00.3]} 35. Be4 {[%clk 0:00:15.2]} 35... Qd6 {[%clk 0:01:45]} 36. Bg2 {[%clk
0:00:12.1]} 36... Rd4 {[%clk 0:01:35]} 37. Rc1 {[%clk 0:00:10.5]} 37... Kh7
{[%clk 0:01:22.5]} 38. Qf2 {[%clk 0:00:09]} 38... Rf4 {[%clk 0:01:09.4]} 39. Qb2
{[%clk 0:00:10]} 39... Nd4 {[%clk 0:01:08]} 40. Rd1 {[%clk 0:00:06.9]} 40...
Qxf6 {[%clk 0:01:08.3]} 41. Qb8 {[%clk 0:00:06.7]} 41... Nf5 {[%clk 0:01:03.2]}
42. Qxf4 {[%clk 0:00:07.4]} 1-0

[Event "GrandPrix_29.05"]
[Site "Chess.com"]
[Date "2020.05.29"]
[Round "5"]
[White "SergeyVashchilov"]
[Black "DarkAlekhine"]
[Result "1/2-1/2"]
[WhiteElo "2082"]
[BlackElo "2018"]
[TimeControl "600+2"]
[EndTime "11:31:36 PDT"]
[Termination "Game drawn by repetition"]

1. e4 {[%clk 0:10:01.9]} 1... Nf6 {[%clk 0:10:00.5]} 2. e5 {[%clk 0:10:02.8]}
2... Nd5 {[%clk 0:10:00.7]} 3. c4 {[%clk 0:10:03.8]} 3... Nb6 {[%clk 0:10:01.4]}
4. d4 {[%clk 0:10:04.7]} 4... d6 {[%clk 0:10:02.7]} 5. exd6 {[%clk 0:10:06.6]}
5... exd6 {[%clk 0:10:03.8]} 6. Nc3 {[%clk 0:10:07.5]} 6... Nc6 {[%clk
0:10:05.3]} 7. Bd3 {[%clk 0:10:07.1]} 7... Nxd4 {[%clk 0:09:57]} 8. Bxh7 {[%clk
0:09:36.5]} 8... Rxh7 {[%clk 0:09:34.8]} 9. Qxd4 {[%clk 0:09:36.4]} 9... Rh4
{[%clk 0:09:29.8]} 10. Qe3+ {[%clk 0:09:33.4]} 10... Qe7 {[%clk 0:09:30]} 11. b3
{[%clk 0:09:33.2]} 11... Bd7 {[%clk 0:09:02.6]} 12. Nf3 {[%clk 0:09:27.9]} 12...
Rh8 {[%clk 0:09:02.6]} 13. a4 {[%clk 0:08:34.2]} 13... Qxe3+ {[%clk 0:08:56.9]}
14. Bxe3 {[%clk 0:08:34.1]} 14... Bc6 {[%clk 0:08:58.8]} 15. Nb5 {[%clk
0:08:22.4]} 15... Kd7 {[%clk 0:08:46.4]} 16. a5 {[%clk 0:08:19.7]} 16... Nc8
{[%clk 0:08:22.3]} 17. Nbd4 {[%clk 0:07:57.1]} 17... Bxf3 {[%clk 0:08:22.8]} 18.
Nxf3 {[%clk 0:07:57]} 18... a6 {[%clk 0:08:23.1]} 19. O-O-O {[%clk 0:07:55.2]}
19... Ne7 {[%clk 0:08:14.7]} 20. Rhe1 {[%clk 0:06:18.3]} 20... Rh5 {[%clk
0:07:13.4]} 21. Bd2 {[%clk 0:05:14.4]} 21... Nc6 {[%clk 0:07:00]} 22. Bc3 {[%clk
0:04:52.1]} 22... Re8 {[%clk 0:06:43]} 23. b4 {[%clk 0:04:19]} 23... Rxe1 {[%clk
0:06:41.1]} 24. Rxe1 {[%clk 0:04:17.5]} 24... Rf5 {[%clk 0:06:24.5]} 25. Kc2
{[%clk 0:03:50.9]} 25... g5 {[%clk 0:04:06.3]} 26. h3 {[%clk 0:03:50.5]} 26...
Be7 {[%clk 0:03:52.5]} 27. Rb1 {[%clk 0:03:10.1]} 27... Rf4 {[%clk 0:03:39.3]}
28. Kd3 {[%clk 0:03:06.2]} 28... g4 {[%clk 0:03:29.5]} 29. hxg4 {[%clk
0:03:06.7]} 29... Rxg4 {[%clk 0:03:31.4]} 30. g3 {[%clk 0:03:06.9]} 30... d5
{[%clk 0:02:52.5]} 31. cxd5 {[%clk 0:02:41.7]} 31... Nxb4+ {[%clk 0:02:52.9]}
32. Bxb4 {[%clk 0:02:17]} 32... Rxb4 {[%clk 0:02:54.8]} 33. Ne5+ {[%clk
0:02:16.2]} 33... Ke8 {[%clk 0:02:55.3]} 34. Rxb4 {[%clk 0:01:53.7]} 34... Bxb4
{[%clk 0:02:52.8]} 35. Nc4 {[%clk 0:01:55.3]} 35... Ke7 {[%clk 0:02:44.6]} 36.
f4 {[%clk 0:01:34.3]} 36... Bc5 {[%clk 0:02:30.7]} 37. g4 {[%clk 0:01:33.1]}
37... b6 {[%clk 0:01:59.9]} 38. d6+ {[%clk 0:01:29.6]} 38... Bxd6 {[%clk
0:01:57.3]} 39. axb6 {[%clk 0:01:28.7]} 39... cxb6 {[%clk 0:01:57.8]} 40. Nxb6
{[%clk 0:01:29.8]} 40... Ke6 {[%clk 0:01:50.7]} 41. Ke4 {[%clk 0:01:29]} 41...
a5 {[%clk 0:01:44]} 42. g5 {[%clk 0:01:19.5]} 42... Bc7 {[%clk 0:01:17.4]} 43.
f5+ {[%clk 0:01:13.9]} 43... Kd6 {[%clk 0:01:15.1]} 44. Nc4+ {[%clk 0:01:06.6]}
44... Ke7 {[%clk 0:01:12.6]} 45. Nb2 {[%clk 0:00:56.3]} 45... Bb6 {[%clk
0:01:01.4]} 46. Nc4 {[%clk 0:00:37.2]} 46... Bc7 {[%clk 0:01:00.9]} 47. Nb2
{[%clk 0:00:37.6]} 47... Bb6 {[%clk 0:00:54.4]} 48. Nc4 {[%clk 0:00:36.8]} 48...
Bc7 {[%clk 0:00:55.3]} 1/2-1/2

[Event "GrandPrix_29.05"]
[Site "Chess.com"]
[Date "2020.05.29"]
[Round "5"]
[White "DinaBelenkaya"]
[Black "rim1618"]
[Result "0-1"]
[WhiteElo "1599"]
[BlackElo "2483"]
[TimeControl "600+2"]
[EndTime "11:31:38 PDT"]
[Termination "rim1618 won by resignation"]

1. e4 {[%clk 0:10:01.9]} 1... d6 {[%clk 0:09:54.6]} 2. d4 {[%clk 0:09:54]} 2...
Nf6 {[%clk 0:09:55.8]} 3. Nc3 {[%clk 0:09:53.1]} 3... e5 {[%clk 0:09:56.9]} 4.
Nf3 {[%clk 0:09:52.8]} 4... Nbd7 {[%clk 0:09:56.4]} 5. Bc4 {[%clk 0:09:14.7]}
5... Be7 {[%clk 0:09:55.8]} 6. O-O {[%clk 0:09:14.2]} 6... O-O {[%clk
0:09:56.5]} 7. a4 {[%clk 0:09:08.8]} 7... a5 {[%clk 0:09:54.6]} 8. Re1 {[%clk
0:09:07.5]} 8... c6 {[%clk 0:09:54.6]} 9. Bf1 {[%clk 0:09:05.7]} 9... Re8 {[%clk
0:09:46.1]} 10. b3 {[%clk 0:08:59.6]} 10... Qc7 {[%clk 0:09:30.2]} 11. Ba3
{[%clk 0:08:16]} 11... Nf8 {[%clk 0:08:56.2]} 12. d5 {[%clk 0:05:38.4]} 12...
Ng6 {[%clk 0:08:40.7]} 13. g3 {[%clk 0:04:21.9]} 13... Bd7 {[%clk 0:08:25.2]}
14. Qd2 {[%clk 0:03:51.4]} 14... Rac8 {[%clk 0:08:17.1]} 15. Rac1 {[%clk
0:03:49.2]} 15... h6 {[%clk 0:07:48.3]} 16. h4 {[%clk 0:02:50.5]} 16... Red8
{[%clk 0:06:50.3]} 17. Bg2 {[%clk 0:02:47.5]} 17... Bf8 {[%clk 0:06:44]} 18. Bb2
{[%clk 0:02:38.4]} 18... Re8 {[%clk 0:06:42.1]} 19. Nd1 {[%clk 0:02:27.1]} 19...
cxd5 {[%clk 0:06:34.1]} 20. exd5 {[%clk 0:02:28.7]} 20... Bf5 {[%clk 0:06:31]}
21. c4 {[%clk 0:02:25.5]} 21... Ne4 {[%clk 0:06:27.9]} 22. Qe2 {[%clk
0:02:18.8]} 22... Nc5 {[%clk 0:06:24.8]} 23. Ne3 {[%clk 0:02:08.5]} 23... Bd3
{[%clk 0:05:28.6]} 24. Qd1 {[%clk 0:02:08.2]} 24... Be4 {[%clk 0:05:20.7]} 25.
h5 {[%clk 0:02:04.4]} 25... Ne7 {[%clk 0:05:07]} 26. Bf1 {[%clk 0:01:56.5]}
26... Rcd8 {[%clk 0:04:07.5]} 27. Rc3 {[%clk 0:01:49.3]} 27... Kh8 {[%clk
0:03:52.5]} 28. Nh4 {[%clk 0:01:50]} 28... Bh7 {[%clk 0:03:45.8]} 29. f3 {[%clk
0:01:44.8]} 29... Ng8 {[%clk 0:03:45]} 30. Bh3 {[%clk 0:01:44.8]} 30... Nf6
{[%clk 0:03:44.9]} 31. g4 {[%clk 0:01:32.8]} 31... e4 {[%clk 0:03:40.8]} 32.
Nef5 {[%clk 0:01:32.1]} 32... exf3 {[%clk 0:02:45.2]} 33. Rxf3 {[%clk
0:01:26.7]} 33... Rxe1+ {[%clk 0:02:46]} 34. Qxe1 {[%clk 0:01:28]} 34... Re8
{[%clk 0:02:46.8]} 35. Re3 {[%clk 0:01:05.8]} 35... Rxe3 {[%clk 0:02:30.8]} 36.
Qxe3 {[%clk 0:01:04.6]} 36... Qd8 {[%clk 0:02:31.7]} 37. Ng2 {[%clk 0:00:07.5]}
37... Bxf5 {[%clk 0:02:18.8]} 38. gxf5 {[%clk 0:00:07.7]} 38... Be7 {[%clk
0:02:02.1]} 39. Nh4 {[%clk 0:00:06.1]} 39... Kg8 {[%clk 0:01:57.7]} 40. Qe2
{[%clk 0:00:07.2]} 40... Nxb3 {[%clk 0:01:52.3]} 41. Bg2 {[%clk 0:00:04.3]}
41... Nc5 {[%clk 0:01:50.3]} 42. Bh3 {[%clk 0:00:02.6]} 42... Nxa4 {[%clk
0:01:50.1]} 43. Bd4 {[%clk 0:00:02.7]} 43... Nd7 {[%clk 0:01:41]} 44. Ng2 {[%clk
0:00:03.9]} 44... Bf6 {[%clk 0:01:41.9]} 45. Bf2 {[%clk 0:00:03.8]} 45... Nc3
{[%clk 0:01:38]} 46. Qe3 {[%clk 0:00:04.6]} 46... a4 {[%clk 0:01:36.5]} 47. Nf4
{[%clk 0:00:05.3]} 47... a3 {[%clk 0:01:37]} 48. Qa7 {[%clk 0:00:06.1]} 48... a2
{[%clk 0:01:37.2]} 49. Bf1 {[%clk 0:00:07.2]} 49... a1=Q {[%clk 0:01:36.5]} 50.
Qxa1 {[%clk 0:00:07.5]} 50... Ne2+ {[%clk 0:01:37.6]} 51. Bxe2 {[%clk
0:00:08.9]} 51... Bxa1 {[%clk 0:01:38.9]} 52. Ng2 {[%clk 0:00:09.9]} 52... Be5
{[%clk 0:01:37.6]} 0-1

[Event "GrandPrix_29.05"]
[Site "Chess.com"]
[Date "2020.05.29"]
[Round "5"]
[White "klimkoj"]
[Black "AvitalBor"]
[Result "0-1"]
[WhiteElo "2123"]
[BlackElo "2507"]
[TimeControl "600+2"]
[EndTime "11:31:39 PDT"]
[Termination "AvitalBor won by resignation"]

1. e4 {[%clk 0:10:01.9]} 1... e5 {[%clk 0:10:00.3]} 2. Nf3 {[%clk 0:10:02.2]}
2... Nc6 {[%clk 0:10:01.9]} 3. Bb5 {[%clk 0:10:03.1]} 3... a6 {[%clk 0:10:03.3]}
4. Ba4 {[%clk 0:10:04.2]} 4... Nf6 {[%clk 0:10:04.6]} 5. O-O {[%clk 0:10:04.5]}
5... b5 {[%clk 0:10:05.9]} 6. Bb3 {[%clk 0:10:05.3]} 6... Bb7 {[%clk 0:10:07.6]}
7. Re1 {[%clk 0:10:06.3]} 7... Bc5 {[%clk 0:10:07.7]} 8. c3 {[%clk 0:10:05.4]}
8... d6 {[%clk 0:10:08.2]} 9. d4 {[%clk 0:10:06]} 9... Bb6 {[%clk 0:10:09.8]}
10. Bc2 {[%clk 0:09:56.9]} 10... h6 {[%clk 0:10:07]} 11. a4 {[%clk 0:09:39.1]}
11... O-O {[%clk 0:10:06.7]} 12. Qd3 {[%clk 0:09:29.1]} 12... exd4 {[%clk
0:10:03.2]} 13. Nxd4 {[%clk 0:09:00]} 13... Bxd4 {[%clk 0:09:22.1]} 14. cxd4
{[%clk 0:08:25]} 14... Nb4 {[%clk 0:09:20.7]} 15. Qc3 {[%clk 0:08:24.9]} 15...
Nxc2 {[%clk 0:09:22.1]} 16. Qxc2 {[%clk 0:08:25.6]} 16... Bxe4 {[%clk
0:09:19.5]} 17. Qb3 {[%clk 0:08:04.2]} 17... Qd7 {[%clk 0:09:04.7]} 18. Nc3
{[%clk 0:07:58.1]} 18... Bd3 {[%clk 0:07:55.2]} 19. Bf4 {[%clk 0:06:45.2]} 19...
Qf5 {[%clk 0:07:48.8]} 20. Bg3 {[%clk 0:06:37.8]} 20... Rae8 {[%clk 0:07:49.4]}
21. axb5 {[%clk 0:06:33.1]} 21... axb5 {[%clk 0:07:46.5]} 22. Qd1 {[%clk
0:06:18.6]} 22... Bc4 {[%clk 0:07:36.3]} 23. Qd2 {[%clk 0:06:08]} 23... Rxe1+
{[%clk 0:07:19.6]} 24. Rxe1 {[%clk 0:06:04.4]} 24... Ra8 {[%clk 0:07:20.8]} 25.
h3 {[%clk 0:05:21.1]} 25... Nd5 {[%clk 0:06:54.2]} 26. Nxd5 {[%clk 0:05:08.8]}
26... Bxd5 {[%clk 0:06:56.1]} 27. Qc3 {[%clk 0:05:09.7]} 27... Ra7 {[%clk
0:06:26.5]} 28. Kh2 {[%clk 0:04:56.6]} 28... Qg6 {[%clk 0:06:20.3]} 29. Re7
{[%clk 0:03:46.9]} 29... Ra1 {[%clk 0:05:48.4]} 30. f3 {[%clk 0:03:42.5]} 30...
Be6 {[%clk 0:05:30.9]} 31. Rxc7 {[%clk 0:02:52.2]} 31... Qb1 {[%clk 0:04:58.7]}
32. Bf2 {[%clk 0:02:52.5]} 32... d5 {[%clk 0:04:16.3]} 33. Qc2 {[%clk
0:02:07.5]} 33... Qh1+ {[%clk 0:03:37.6]} 34. Kg3 {[%clk 0:02:07]} 34... g5
{[%clk 0:03:11.8]} 35. Re7 {[%clk 0:01:15.3]} 35... h5 {[%clk 0:02:14.2]} 36.
Rxe6 {[%clk 0:00:45.8]} 36... h4+ {[%clk 0:02:15]} 37. Kg4 {[%clk 0:00:46.7]}
37... Qxg2+ {[%clk 0:02:15.7]} 38. Kh5 {[%clk 0:00:45]} 38... Qxf3+ {[%clk
0:02:03.9]} 39. Kxg5 {[%clk 0:00:18.8]} 39... fxe6 {[%clk 0:01:58.1]} 40. Qc8+
{[%clk 0:00:19.5]} 40... Kg7 {[%clk 0:01:23.5]} 41. Qc7+ {[%clk 0:00:19.6]}
41... Qf7 {[%clk 0:01:22.2]} 42. Qe5+ {[%clk 0:00:20.1]} 42... Kg8 {[%clk
0:01:19]} 43. Kxh4 {[%clk 0:00:16.5]} 43... Qh7+ {[%clk 0:01:16.9]} 44. Kg5
{[%clk 0:00:12.5]} 44... Qg7+ {[%clk 0:01:16.8]} 45. Kf4 {[%clk 0:00:13.9]}
45... Qxe5+ {[%clk 0:01:17]} 46. Kxe5 {[%clk 0:00:15.1]} 46... Kf7 {[%clk
0:01:18.3]} 47. h4 {[%clk 0:00:12.4]} 47... Ra2 {[%clk 0:01:19.5]} 48. h5 {[%clk
0:00:10.3]} 48... Rxb2 {[%clk 0:01:20.7]} 0-1